Workbook

Sheet Лист1
A2: РАСЧЕТ СТОИМОСТИ ПЛАТНОЙ УСЛУГИ
A3: "Акварелька", педвгог дополнительного образования Кандратьева А.М.
A4: (наименование платной услуги )
A5: 1. Расчет затрат на оплату труда основного персонала, непосредственно участвующего в процессе оказания платной услуги (работы)
A7: Наименование должности | B7: Средняя заработная плата, включая начисления на выплаты по оплате труда, рублей в месяц | C7: месячный фонд рабочего времени ,минут | D7: норма времени на оказание платной услуги, минут | E7: Затраты на оплату труда персонала, рублей (5) = (2) : (3) х (4)
A8: 1 | B8: 2 | C8: 3 | D8: 4 | E8: 5
A9: 1.Педагог дополнительного образования | B9: 25212.82 | C9: 8754 | D9: 30 | E9: =B9/C9*D9 -> 86.40
A11: Итого | E11: =E9 -> 86.40
A12: 2. Расчет затрат на материальные запасы, полностью потребляемые в процессе оказания платной услуги (работы)
A14: Вид материальных запасов | B14: Наименование товара, составляющего материальный запас | C14: Единица измерения | D14: Норма потребления | E14: Объем оказания платных услуг за норму времени | F14: Цена за единицу | G14: Всего затрат материальных запасов (7) = (4) х (5) х (6)
A15: 1 | B15: 2 | C15: 3 | D15: 4 | E15: 5 | F15: 6 | G15: 7
A16: 1. Затраты на приобретение расходных материалов | B16: альбом | C16: шт | D16: 0.05 | E16: 10 | F16: 15 | G16: =F16*E16*D16 -> 7.5
B17: краски | C17: шт | D17: 0.04 | E17: 10 | F17: 10 | G17: =F17*E17*D17 -> 4.0
B18: карандаши | C18: шт | D18: 0.04 | E18: 10 | F18: 10 | G18: 4.0
B19: затраты на материалы не производятся
A20: Итого | G20: =SUM(G16:G18) -> 15.5
A22: 3. Расчет суммы начисленной амортизации обудования, используемого при оказании платной услуги(работы)
A24: Наименование оборудования | B24: Балансовая стоимость | C24: Годовая норма износа, процентов | D24: Годовая норма времени работы оборудования, часов | E24: Время работы оборудования в процессе оказания платной услуги, часов | F24: Сумма начисленной амортизации (6) = (2) х (3) х (4) :(5)
A25: 1 | B25: 2 | C25: 3 | D25: 4 | E25: 5 | F25: 6
A26: 1.
A27: 2.
A28: Итого | F28: 0
A30: 4. Расчет накладных затрат, неоходимых для обеспечения деятельности учреждения при оказании платной услуги (работы)
A32: № п/п | B32: Наименование статей затрат | C32: Сумма
A33: 1. | B33: Прогноз затрат на адмистративно-управленческий персонал | C33: =85895.96*10%*12 -> 103075.15 | D33: расчет по формуле 19583,23*10%*12
A34: 2. | B34: Прогноз затрат общехозяйственного назначения | C34: 1,826,760.02
A35: 3. | B35: Прогноз суммы начисленной амортизации имущества общехозяйственного назначения | C35: 47734.65
A36: 4. | B36: Прогноз суммарного фонда оплаты труда осного персонала | C36: 20,553,626.40
A37: 5. | B37: Коэффициент накладных затрат (5) = ((1) + (2) + (3)) :(4) | C37: =(C33+C34+C35)/C36 -> 0.10
A38: 6. | B38: Затраты на основной персонал, участвующий в предостовлении платной услуги | C38: =E9 -> 86.40
A39: 7. | B39: Итого накладных затрат (7) = (5) х (6) | C39: =C37*C38 -> 8.31
A41: Суммы выделенные красным цветом считаются автоматически

Sheet Лист2
C1: УТВЕРЖДАЮ:
C2: Заведующий ДОУ №13
C3: Вергизова Е.Н.
C5: __________________
C6: ___________________ _______г
A8: Расчет цены на оказание платной услуги (КАЛЬКУЛЯЦИЯ)
B9: Кружок "Акварелька"
A10: (наименование платной услуги)
A11: Плановое кол-во воспитанников | C11: 15 | D11: чел.
A12: Норма времени на оказание услуги | C12: 30 | D12: мин.
A13: Количество занятий в месяц | C13: 4 | D13: занятия | E13: количество занятий устанавливается в соответствии с СанПиН
A15: № п/п | B15: Наименование статей затрат | C15: Единица измерения | D15: Показатель
A16: 1. | B16: Затраты на олату труда основного персонала | C16: рублей | D16: =Лист1!E9 -> 86.40
A17: 2. | B17: Затраты материальных запасов | C17: рублей | D17: =Лист1!G20 -> 15.50
A18: 3. | B18: Сумма начисленной амортизации оборудования, используемого при оказании платной услуги | C18: рублей | D18: =Лист1!F28 -> 0.00
A19: 4. | B19: Накладные затраты, относимые на платную услугу | C19: рублей | D19: =Лист1!C39 -> 8.31
A20: 5. | B20: Итого затрат | C20: рублей | D20: =D16+D17+D18+D19 -> 110.22
B21: Рентабельность | C21: % | D21: 25%
A22: 6. | B22: Затраты с учетом рентабельности | C22: рублей | D22: =D20*D21+D20 -> 137.77
A23: 7. | B23: Плановое количество оказываемых услуг | C23: занятий в мес. | D23: 4
A24: 8. | B24: Цена платной услуги | C24: рублей за 1 услугу в мес. | D24: =D23*D22 -> 551.1 | E24: для удобства оплаты через терминалы можно округлить цену услуги до целых, но желательно в меньшую сторону для того что-бы не возмущались родители (например 440 руб.)
D25: 550.0

Sheet Лист3
A1: Рекомендуемое распределение средств
A3: Стоимость обучения одного воспитанника в месяц | F3: =Лист2!D25 -> 550.00
A4: Стоимость обучения 15-ти воспитанниов в месяц | F4: =F3*15 -> 8,250.00
A5: 1. ФОТ = 60% | F5: =F4*60% -> 4,950.00
A6: Начисление на зарплату - 30,2% | F6: =F5-F5/1.302 -> 1,148.16
A7: Фонд заработной платы без начислений | F7: =F5-F6 -> 3,801.84
A8: 2. Фонд метериального обеспечения ДОУ в мес. | F8: =F4-F5 -> 3,300.00
